Department Family,Entity,Date,Expense Type,Expense Area,Supplier,Transaction Number,Amount,,
DOH,London Ambulance Service NHS Trust,01/10/2019,Elective Bets Nurses,Neonatal Transfer Service,Barts & The London Nhs Trust,4403,30000.00,,
DOH,London Ambulance Service NHS Trust,04/10/2019,Dh Managed Service,Airwave Support,Department Of Health,4433,-726573.45,,
DOH,London Ambulance Service NHS Trust,04/10/2019,Dh Managed Service,Airwave Support,Department Of Health,4454,727632.69,,
DOH,London Ambulance Service NHS Trust,01/10/2019,Vehicles,Capital,Wilker Auto Conversions,460356,59983.00,,
DOH,London Ambulance Service NHS Trust,01/10/2019,Acd Maintenance,Networks,Bt Plc,464432,49936.92,,
DOH,London Ambulance Service NHS Trust,02/10/2019,Private Ambulance Hire,Ops Central - Private Amb,Falck Uk Ambulance Service Ltd,485612,56163.37,,
DOH,London Ambulance Service NHS Trust,11/10/2019,Professional Fees,Property Management,Avison Young,486343,33772.80,,
DOH,London Ambulance Service NHS Trust,01/10/2019,Make Ready Support,Make Ready Service,Interserve Hospital Services,489427,264526.73,,
DOH,London Ambulance Service NHS Trust,01/10/2019,Contract Labour,Vehicle Resouce Centre,Churchill Contract Services Ltd,489559,117948.96,,
DOH,London Ambulance Service NHS Trust,01/10/2019,Professional Fees,Im&T Tech Design Authority,Tm Management Solutions Ltd,489560,37500.00,,
DOH,London Ambulance Service NHS Trust,01/10/2019,Vehicle Recovery,Fleet Support Services,The Mansfield Group,489890,52953.06,,
DOH,London Ambulance Service NHS Trust,01/10/2019,Computer Software,Infrastructure Management,Software Box Ltd,489893,447340.01,,
DOH,London Ambulance Service NHS Trust,01/10/2019,Computer Software,Infrastructure Management,Software Box Ltd,489894,509407.41,,
DOH,London Ambulance Service NHS Trust,01/10/2019,Technical Support - Contract,Telent Mdt Maintenance,Telent Technology Services Ltd,490216,237972.60,,
DOH,London Ambulance Service NHS Trust,01/10/2019,Taxis & Mini Cabs,Sub-Contracted Transport,Addison Lee,490404,40787.34,,
DOH,London Ambulance Service NHS Trust,02/10/2019,Technical Support - Contract,Capita Contract,Capita Secure Information Solutions Ltd,490489,63061.52,,
DOH,London Ambulance Service NHS Trust,02/10/2019,Technical Support - Contract,Capita Contract,Capita Secure Information Solutions Ltd,490490,63061.52,,
DOH,London Ambulance Service NHS Trust,01/10/2019,Private Ambulance Hire,Ops Central - Private Amb,St John Ambulance Londonprince,490602,42423.15,,
DOH,London Ambulance Service NHS Trust,01/10/2019,Private Ambulance Hire,Ops Central - Private Amb,St John Ambulance Londonprince,490615,43561.65,,
DOH,London Ambulance Service NHS Trust,01/10/2019,Private Ambulance Hire,Ops Central - Private Amb,St John Ambulance Londonprince,490617,43552.46,,
DOH,London Ambulance Service NHS Trust,01/10/2019,Private Ambulance Hire,Ops Central - Private Amb,St John Ambulance Londonprince,490618,42687.06,,
DOH,London Ambulance Service NHS Trust,02/10/2019,Private Ambulance Hire,Ops Central - Private Amb,Falck Uk Ambulance Service Ltd,490739,34732.94,,
DOH,London Ambulance Service NHS Trust,25/10/2019,Training Accommodation,International Recruitment 1718,The Independents Hotel Reservations Ltd,491047,41904.00,,
DOH,London Ambulance Service NHS Trust,09/10/2019,Medical & Surgical Items,Primary Response Bags,Teleflex Medical,492015,27120.00,,
DOH,London Ambulance Service NHS Trust,09/10/2019,Cleaning Of Premises,Property Management,Lakethorne Ltd,492052,101423.62,,
DOH,London Ambulance Service NHS Trust,01/10/2019,Rent,Islington Estates,City Of London,492106,55992.00,,
DOH,London Ambulance Service NHS Trust,02/10/2019,Private Ambulance Hire,Ops Central - Private Amb,Falck Uk Ambulance Service Ltd,492148,34157.27,,
DOH,London Ambulance Service NHS Trust,01/10/2019,Data Network Rental,Networks,Bt Global Services,492177,31881.79,,
DOH,London Ambulance Service NHS Trust,09/10/2019,Medical & Surgical Items,Make Ready Service,Stryker Uk Ltd,492294,42000.00,,
DOH,London Ambulance Service NHS Trust,01/10/2019,Rent,Hazardous Area Response Team,Jones Lang Lasalle (Rent Only),492595,58764.00,,
DOH,London Ambulance Service NHS Trust,09/10/2019,Consultancy Fees,Sm - Quality & Assurance Pmo,Discidium Limited,492638,68040.00,,
DOH,London Ambulance Service NHS Trust,16/10/2019,Medical & Surgical Items,Supply & Material Management,Tsi Instrument Limited,493321,44795.86,,
DOH,London Ambulance Service NHS Trust,18/10/2019,Make Ready Support,Make Ready Service,Interserve Hospital Services,493461,362958.00,,
DOH,London Ambulance Service NHS Trust,02/10/2019,Vehicles,Capital,Wilker Auto Conversions,494059,59983.00,,
DOH,London Ambulance Service NHS Trust,02/10/2019,Vehicles,Capital,Wilker Auto Conversions,494060,59983.00,,
DOH,London Ambulance Service NHS Trust,02/10/2019,Vehicles,Capital,Wilker Auto Conversions,494061,59983.00,,
DOH,London Ambulance Service NHS Trust,02/10/2019,Vehicles,Capital,Wilker Auto Conversions,494087,59983.00,,
DOH,London Ambulance Service NHS Trust,02/10/2019,Vehicles,Capital,Wilker Auto Conversions,494088,59983.00,,
DOH,London Ambulance Service NHS Trust,02/10/2019,Vehicles,Capital,Wilker Auto Conversions,494089,59983.00,,
DOH,London Ambulance Service NHS Trust,02/10/2019,Vehicles,Capital,Wilker Auto Conversions,494090,59983.00,,
DOH,London Ambulance Service NHS Trust,02/10/2019,Vehicles,Capital,Wilker Auto Conversions,494093,59983.00,,
DOH,London Ambulance Service NHS Trust,02/10/2019,Vehicles,Capital,Wilker Auto Conversions,494105,59983.00,,
DOH,London Ambulance Service NHS Trust,02/10/2019,Vehicles,Capital,Wilker Auto Conversions,494107,59983.00,,
DOH,London Ambulance Service NHS Trust,02/10/2019,Vehicles,Capital,Wilker Auto Conversions,494108,59983.00,,
DOH,London Ambulance Service NHS Trust,02/10/2019,Vehicles,Capital,Wilker Auto Conversions,494109,59983.00,,
DOH,London Ambulance Service NHS Trust,02/10/2019,Vehicles,Capital,Wilker Auto Conversions,494110,59983.00,,
DOH,London Ambulance Service NHS Trust,02/10/2019,Vehicles,Capital,Wilker Auto Conversions,494111,59983.00,,
DOH,London Ambulance Service NHS Trust,02/10/2019,Vehicles,Capital,Wilker Auto Conversions,494112,59983.00,,
DOH,London Ambulance Service NHS Trust,02/10/2019,Vehicles,Capital,Wilker Auto Conversions,494116,59983.00,,
DOH,London Ambulance Service NHS Trust,02/10/2019,Vehicles,Capital,Wilker Auto Conversions,494117,59983.00,,
DOH,London Ambulance Service NHS Trust,02/10/2019,Vehicles,Capital,Wilker Auto Conversions,494118,59983.00,,
DOH,London Ambulance Service NHS Trust,02/10/2019,Vehicles,Capital,Wilker Auto Conversions,494119,59983.00,,
DOH,London Ambulance Service NHS Trust,02/10/2019,Vehicles,Capital,Wilker Auto Conversions,494120,59983.00,,
DOH,London Ambulance Service NHS Trust,02/10/2019,Vehicles,Capital,Wilker Auto Conversions,494121,59983.00,,
DOH,London Ambulance Service NHS Trust,02/10/2019,Vehicles,Capital,Wilker Auto Conversions,494122,59983.00,,
DOH,London Ambulance Service NHS Trust,02/10/2019,Vehicles,Capital,Wilker Auto Conversions,494128,118206.00,,
DOH,London Ambulance Service NHS Trust,23/10/2019,Occupational Health Fees,P&C Management,People Asset Management Ltd,494219,56828.59,,
DOH,London Ambulance Service NHS Trust,11/10/2019,External Training Services,Teacs,Fts Solutions Ltd,494271,41640.00,,
DOH,London Ambulance Service NHS Trust,18/10/2019,Computer Software Maintenance,Management Information,Itesoft Uk Ltd,494294,27252.00,,
DOH,London Ambulance Service NHS Trust,02/10/2019,Pagers,Emergency Planning,Pageone Communications Ltd,494342,40520.00,,
DOH,London Ambulance Service NHS Trust,18/10/2019,Agency Nurses,111 Sel Operations,Hays Specialist Recruitment Ltd,494363,97760.87,,
DOH,London Ambulance Service NHS Trust,18/10/2019,Agency Call Handlers,111 Sel Operations,Hays Specialist Recruitment Ltd,494363,1655.87,,
DOH,London Ambulance Service NHS Trust,18/10/2019,Agency GP,111 Sel Operations,Hays Specialist Recruitment Ltd,494363,9711.00,,
DOH,London Ambulance Service NHS Trust,18/10/2019,Agency Nurses,111 NEL Operations,Hays Specialist Recruitment Ltd,494363,16539.86,,
DOH,London Ambulance Service NHS Trust,25/10/2019,Make Ready Support,Make Ready Service,Interserve Hospital Services,494376,264526.73,,
DOH,London Ambulance Service NHS Trust,18/10/2019,Rent,Maritime House Training Centre,Dooba Investments Iii Limited,494630,78058.88,,
DOH,London Ambulance Service NHS Trust,23/10/2019,Vehicle Recovery,Fleet Support Services,The Mansfield Group,494720,49869.60,,
DOH,London Ambulance Service NHS Trust,23/10/2019,Mobile Phone Rental,Telecommunications,Vodafone Corporate Limited,495047,79768.75,,
DOH,London Ambulance Service NHS Trust,18/10/2019,Rent,Pocock Street,Tlg Llc,495174,85521.76,,
DOH,London Ambulance Service NHS Trust,23/10/2019,Taxis & Mini Cabs,Sub-Contracted Transport,Addison Lee,495284,37468.26,,
DOH,London Ambulance Service NHS Trust,23/10/2019,Phone & Fax Line Rental,Networks,Britsh Telecom (Bt) Plc,495286,89340.14,,
DOH,London Ambulance Service NHS Trust,09/10/2019,Private Ambulance Hire,Sub-Contracted Transport,St John Ambulance Londonprince,495349,36698.37,,
DOH,London Ambulance Service NHS Trust,09/10/2019,Private Ambulance Hire,Sub-Contracted Transport,St John Ambulance Londonprince,495350,43536.18,,
DOH,London Ambulance Service NHS Trust,09/10/2019,Private Ambulance Hire,Sub-Contracted Transport,St John Ambulance Londonprince,495351,43835.38,,
DOH,London Ambulance Service NHS Trust,11/10/2019,Lease Costs For Ops Vehicles,Frontline Ambulance Leases,Link Asset Services,495659,252336.00,,
DOH,London Ambulance Service NHS Trust,23/10/2019,Rent,Maritime House Training Centre,Dooba Investments Iii Limited,495879,39029.44,,
DOH,London Ambulance Service NHS Trust,23/10/2019,Rent,Maritime House Training Centre,Dooba Investments Iii Limited,495882,39029.44,,
DOH,London Ambulance Service NHS Trust,16/10/2019,Private Ambulance Hire,Sub-Contracted Transport,Falck Uk Ambulance Service Ltd,496653,38711.83,,
DOH,London Ambulance Service NHS Trust,25/10/2019,Data Network Rental,Networks,Bt Global Services,497007,31881.79,,
DOH,London Ambulance Service NHS Trust,18/10/2019,Rent,Union Street,Dron & Wright,497495,68725.00,,
DOH,London Ambulance Service NHS Trust,18/10/2019,Service Charges,Union Street,Dron & Wright,497495,22871.88,,
DOH,London Ambulance Service NHS Trust,23/10/2019,Private Ambulance Hire,Ops Central - Private Amb,St John Ambulance Londonprince,497562,43358.85,,
DOH,London Ambulance Service NHS Trust,23/10/2019,Private Ambulance Hire,Ops Central - Private Amb,St John Ambulance Londonprince,497563,42428.55,,
DOH,London Ambulance Service NHS Trust,23/10/2019,Rent,Maritime House Training Centre,Dooba Investments Iii Limited,497579,39029.44,,
DOH,London Ambulance Service NHS Trust,01/10/2019,Ensign Insurance Debtor,Control Accounts,QBE International Insurance T/A Ensign,67143,285018.75,,
DOH,London Ambulance Service NHS Trust,25/10/2019,Medical Gas,Director Of Ops,British Oxygen,67369,103301.58,,
DOH,London Ambulance Service NHS Trust,15/10/2019,Fuel,Director Of Ops,BP Oil,67201,211092.48,,
DOH,London Ambulance Service NHS Trust,31/10/2019,Fuel,Director Of Ops,BP Oil,67843,224225.82,,
DOH,London Ambulance Service NHS Trust,15/10/2019,CNST Contributions,Legal Services,NHSLA,67201,371063.5,,
DOH,London Ambulance Service NHS Trust,15/10/2019,Liability to 3rd Party Scheme,Legal Services,NHSLA,67201,47807.8,,
DOH,London Ambulance Service NHS Trust,16/10/2019,Property Expenses Scheme,Legal Services,NHSLA,67201,"1,337.70",,
